[Event "2nd Namma Bengaluru Open-B 2025"]
[Site "Bengaluru"]
[Date "2025.04.11"]
[Round "5.7"]
[White "Aryan Behera"]
[Black "Swapnil Priyadarshi"]
[Result "1/2-1/2"]
[Annotator "NA"]
[ECO "B92"]
[WhiteElo "1732"]
[BlackElo "1814"]
[PlyCount "148"]
[EventDate "2025.04.10"]
[EventType "swiss"]
[EventCountry "IND"]
[SourceTitle "playchess.com"]
[Source "ChessBase"]
[SourceQuality "1"]
[TimeControl "3600+30"]

1. e4 {[%emt 0:00:02]} c5 {[%emt 0:01:16]} 2. Nf3 {[%emt 0:00:06]} d6 {[%emt 0:00:08]} 3. d4 {[%emt 0:00:05]} cxd4 {[%emt 0:00:03]} 4. Nxd4 {[%emt 0:00:04]} Nf6 {[%emt 0:00:03]} 5. Nc3 {[%emt 0:00:05]} a6 {[%emt 0:00:07]} 6. Be2 {[%emt 0:00:22]} e5 {[%emt 0:00:09]} 7. Nb3 {[%emt 0:00:26]} Be6 {[%emt 0:00:10]} 8. Be3 {[%emt 0:01:03]} Be7 {[%emt 0:00:39]} 9. g4 {[%emt 0:00:19]} d5 {[%emt 0:02:03]} 10. exd5 {[%emt 0:00:10]} Nxd5 {[%emt 0:00:04]} 11. Nxd5 {[%emt 0:01:07]} Bxd5 {[%emt 0:04:55]} 12. Bf3 {[%emt 0:00:06]} Bxf3 {[%emt 0:02:14]} 13. Qxf3 {[%emt 0:00:08]} Nc6 {[%emt 0:00:19]} 14. Nd2 {[%emt 0:07:01]} Nb4 {[%emt 0:55:20]} 15. Qe4 {[%emt 0:11:25]} Qd5 {[%emt 0:00:00]} 16. Qxd5 {[%emt 0:00:55]} Nxd5 {[%emt 0:00:00]} 17. O-O-O {[%emt 0:04:11]} Nxe3 18. fxe3 {[%emt 0:00:03]} h5 {[%emt 0:00:00]} 19. h3 {[%emt 0:03:12]} b5 {[%emt 0:00:00]} 20. Ne4 {[%emt 0:00:47]} Rd8 {[%emt 0:00:00]} 21. g5 {[%emt 0:03:06]} h4 {[%emt 0:00:00]} 22. Rxd8+ {[%emt 0:00:47]} Kxd8 {[%emt 0:00:00]} 23. Rf1 {[%emt 0:00:13]} Rf8 {[%emt 0:00:07]} 24. Kd2 {[%emt 0:02:28]} Kd7 {[%emt 0:00:09]} 25. c4 {[%emt 0:01:49]} bxc4 {[%emt 0:01:15]} 26. Kc3 {[%emt 0:00:02]} Ke6 {[%emt 0:00:19]} 27. Kxc4 {[%emt 0:00:06]} Rc8+ {[%emt 0:00:27]} 28. Kd3 {[%emt 0:00:02]} Rb8 {[%emt 0:00:41]} 29. b3 {[%emt 0:00:28]} f5 {[%emt 0:00:26]} 30. gxf6 {[%emt 0:00:25]} gxf6 {[%emt 0:00:01]} 31. Rg1 {[%emt 0:00:31]} f5 {[%emt 0:01:58]} 32. Ng5+ {[%emt 0:01:58]} Kf6 {[%emt 0:01:33]} 33. Ke2 {[%emt 0:05:33]} e4 {[%emt 0:00:40]} 34. Nh7+ {[%emt 0:00:30]} Ke5 {[%emt 0:00:19]} 35. Rg7 {[%emt 0:00:34]} Bb4 {[%emt 0:00:45]} 36. Rg6 {[%emt 0:01:23]} a5 {[%emt 0:01:40]} 37. Ng5 {[%emt 0:00:33]} f4 {[%emt 0:00:28]} 38. Re6+ {[%emt 0:04:28]} Kf5 {[%emt 0:00:05]} 39. exf4 {[%emt 0:00:09]} Kxf4 {[%emt 0:00:44]} 40. Nf7 {[%emt 0:00:18]} Kf5 {[%emt 0:00:47]} 41. Ra6 {[%emt 0:02:18]} Rc8 {[%emt 0:00:32]} 42. a3 {[%emt 0:06:28]} Be7 {[%emt 0:00:32]} 43. Rxa5+ {[%emt 0:00:57]} Kf4 {[%emt 0:00:06]} 44. Ne5 {[%emt 0:00:49]} Kg3 {[%emt 0:01:26]} 45. Ng6 {[%emt 0:00:52]} Bf6 {[%emt 0:00:00]} 46. Rf5 {[%emt 0:00:40]} Bd4 {[%emt 0:00:15]} 47. Rf4 {[%emt 0:01:28]} Rc6 {[%emt 0:00:41]} 48. Rxe4 {[%emt 0:00:15]} Bb2 {[%emt 0:00:28]} 49. Re3+ {[%emt 0:00:11]} Kh2 {[%emt 0:00:26]} 50. Nxh4 {[%emt 0:00:17]} Bxa3 {[%emt 0:00:23]} 51. Nf3+ {[%emt 0:00:34]} Kg2 {[%emt 0:00:04]} 52. Nd4 {[%emt 0:00:34]} Rh6 {[%emt 0:00:43]} 53. Nc2 {[%emt 0:01:30]} Bd6 {[%emt 0:01:30]} 54. Ne1+ {[%emt 0:01:03]} Kh2 {[%emt 0:00:00]} 55. h4 {[%emt 0:00:03]} Bg3 {[%emt 0:00:18]} 56. Nf3+ {[%emt 0:00:24]} Kg2 {[%emt 0:00:29]} 57. b4 {[%emt 0:01:02]} Ra6 {[%emt 0:00:27]} 58. b5 {[%emt 0:03:09]} Ra2+ {[%emt 0:00:09]} 59. Kd3 {[%emt 0:00:01]} Kf2 {[%emt 0:00:51]} 60. Ne5 {[%emt 0:01:30]} Ra3+ {[%emt 0:00:33]} 61. Kd4 {[%emt 0:00:01]} Ra4+ {[%emt 0:00:39]} 62. Nc4 {[%emt 0:00:11]} Bxh4 {[%emt 0:00:31]} 63. Rb3 {[%emt 0:00:18]} Ke2 {[%emt 0:00:31]} 64. b6 {[%emt 0:00:08]} Bf2+ {[%emt 0:00:01]} 65. Kd5 {[%emt 0:00:09]} Bxb6 {[%emt 0:00:15]} 66. Nxb6 {[%emt 0:00:13]} Rh4 {[%emt 0:00:25]} 67. Nc4 {[%emt 0:00:09]} Rh5+ {[%emt 0:00:15]} 68. Ne5 {[%emt 0:00:06]} Rh8 {[%emt 0:00:51]} 69. Ng6 {[%emt 0:01:03]} Rd8+ {[%emt 0:00:20]} 70. Ke4 {[%emt 0:00:06]} Re8+ {[%emt 0:00:17]} 71. Ne5 {[%emt 0:00:01]} Kd2 {[%emt 0:00:33]} 72. Rh3 {[%emt 0:00:41]} Kc2 {[%emt 0:00:44]} 73. Kd4 {[%emt 0:00:09]} Rd8+ {[%emt 0:00:11]} 74. Kc5 {[%emt 0:00:06]} Kd2 {[%emt 0:00:56]} 1/2-1/2

[Event "2nd Namma Bengaluru Open-B 2025"]
[Site "Bengaluru"]
[Date "2025.04.11"]
[Round "5.8"]
[White "Shreyan Thipparthi"]
[Black "Nijesh R"]
[Result "0-1"]
[Annotator "NA"]
[ECO "E11"]
[WhiteElo "1730"]
[BlackElo "1813"]
[PlyCount "116"]
[EventDate "2025.04.10"]
[EventType "swiss"]
[EventCountry "IND"]
[SourceTitle "playchess.com"]
[Source "ChessBase"]
[SourceQuality "1"]
[TimeControl "3600+30"]

1. d4 {[%emt 0:01:16]} Nf6 {[%emt 0:00:18]} 2. c4 {[%emt 0:00:11]} e6 {[%emt 0:00:22]} 3. g3 {[%emt 0:00:08]} d5 {[%emt 0:00:12]} 4. Nf3 {[%emt 0:00:09]} Bb4+ {[%emt 0:00:24]} 5. Bd2 {[%emt 0:00:10]} Be7 {[%emt 0:00:29]} 6. Qc2 {[%emt 0:00:11]} O-O {[%emt 0:00:24]} 7. Bg2 {[%emt 0:00:07]} c6 {[%emt 0:01:04]} 8. O-O {[%emt 0:00:32]} Nbd7 {[%emt 0:00:50]} 9. b3 {[%emt 0:01:05]} Ne4 {[%emt 0:08:28]} 10. Nc3 {[%emt 0:00:20]} Nxd2 {[%emt 0:01:56]} 11. Nxd2 {[%emt 0:00:37]} e5 {[%emt 0:05:32]} 12. e3 {[%emt 0:06:29]} exd4 {[%emt 0:00:45]} 13. exd4 {[%emt 0:55:45]} dxc4 {[%emt 0:00:48]} 14. Nxc4 {[%emt 0:00:00]} Nf6 {[%emt 0:00:30]} 15. Rad1 {[%emt 0:00:00]} Bg4 {[%emt 0:03:12]} 16. Rd2 {[%emt 0:00:00]} Bb4 {[%emt 0:05:20]} 17. a3 {[%emt 0:00:00]} Bxc3 {[%emt 0:03:03]} 18. Qxc3 {[%emt 0:00:00]} Nd5 {[%emt 0:01:33]} 19. Qc2 {[%emt 0:00:00]} Re8 {[%emt 0:02:54]} 20. Ne5 {[%emt 0:00:00]} Be6 {[%emt 0:00:53]} 21. Re1 {[%emt 0:00:00]} f6 {[%emt 0:01:31]} 22. Nf3 {[%emt 0:00:00]} Qd7 {[%emt 0:01:04]} 23. Rde2 {[%emt 0:00:00]} Bf7 {[%emt 0:02:57]} 24. Rxe8+ {[%emt 0:00:00]} Rxe8 {[%emt 0:00:02]} 25. Qd2 {[%emt 0:00:00]} Nc7 {[%emt 0:02:46]} 26. b4 {[%emt 0:00:00]} Rxe1+ {[%emt 0:01:04]} 27. Qxe1 {[%emt 0:00:00]} Nb5 {[%emt 0:00:10]} 28. Qe3 {[%emt 0:00:00]} Qe6 {[%emt 0:03:17]} 29. Qf4 {[%emt 0:00:00]} Qd6 {[%emt 0:04:03]} 30. Qxd6 {[%emt 0:00:00]} Nxd6 {[%emt 0:00:08]} 31. Bf1 {[%emt 0:00:00]} Bd5 {[%emt 0:00:53]} 32. Nd2 {[%emt 0:00:00]} Nf5 {[%emt 0:00:09]} 33. Bc4 {[%emt 0:00:00]} Nxd4 {[%emt 0:00:53]} 34. Bxd5+ {[%emt 0:00:00]} cxd5 {[%emt 0:00:06]} 35. Kf1 {[%emt 0:00:00]} Kf7 {[%emt 0:00:14]} 36. f3 {[%emt 0:00:00]} Ke6 {[%emt 0:00:09]} 37. Kf2 {[%emt 0:00:00]} Kd6 {[%emt 0:00:22]} 38. Nb1 {[%emt 0:00:00]} Ne6 {[%emt 0:01:28]} 39. Ke3 {[%emt 0:00:00]} d4+ {[%emt 0:01:08]} 40. Kd3 {[%emt 0:00:00]} Kd5 {[%emt 0:00:09]} 41. Nd2 {[%emt 0:00:00]} Nc7 {[%emt 0:03:42]} 42. a4 {[%emt 0:00:00]} Na6 {[%emt 0:00:05]} 43. b5 {[%emt 0:00:00]} Nc5+ {[%emt 0:00:06]} 44. Kc2 {[%emt 0:00:00]} Nxa4 {[%emt 0:00:04]} 45. f4 {[%emt 0:00:00]} Nc3 {[%emt 0:00:11]} 46. Kd3 {[%emt 0:00:00]} Nxb5 {[%emt 0:00:08]} 47. Nf3 {[%emt 0:00:00]} a5 {[%emt 0:00:05]} 48. Nd2 {[%emt 0:00:00]} a4 {[%emt 0:00:13]} 49. Nc4 {[%emt 0:00:00]} a3 {[%emt 0:00:05]} 50. Nxa3 {[%emt 0:00:00]} Nxa3 {[%emt 0:00:05]} 51. Ke2 {[%emt 0:00:00]} Ke4 {[%emt 0:00:05]} 52. Kf2 {[%emt 0:00:00]} d3 {[%emt 0:00:03]} 53. h4 {[%emt 0:00:00]} Nb1 {[%emt 0:00:17]} 54. Kg2 {[%emt 0:00:00]} d2 {[%emt 0:00:01]} 55. Kh2 {[%emt 0:00:00]} Kf3 {[%emt 0:00:11]} 56. f5 {[%emt 0:00:00]} d1=Q {[%emt 0:00:05]} 57. h5 {[%emt 0:00:00]} Qf1 {[%emt 0:00:07]} 58. h6 {[%emt 0:00:00]} Qg2# {[%emt 0:00:08]} 0-1

[Event "2nd Namma Bengaluru Open-B 2025"]
[Site "Bengaluru"]
[Date "2025.04.11"]
[Round "5.9"]
[White "Rudra Rajeev"]
[Black "Rohith P"]
[Result "0-1"]
[Annotator "NA"]
[ECO "E38"]
[WhiteElo "1715"]
[BlackElo "1808"]
[PlyCount "140"]
[EventDate "2025.04.10"]
[EventType "swiss"]
[EventCountry "IND"]
[SourceTitle "playchess.com"]
[Source "ChessBase"]
[SourceQuality "1"]
[TimeControl "3600+30"]

1. d4 {[%emt 0:00:05]} Nf6 {[%emt 0:01:37]} 2. c4 {[%emt 0:00:07]} e6 {[%emt 0:00:04]} 3. Nc3 {[%emt 0:00:06]} Bb4 {[%emt 0:00:03]} 4. Qc2 {[%emt 0:00:45]} c5 {[%emt 0:00:08]} 5. dxc5 {[%emt 0:00:34]} Bxc5 {[%emt 0:00:08]} 6. e3 {[%emt 0:02:20]} O-O {[%emt 0:00:07]} 7. Bd3 {[%emt 0:01:23]} d5 {[%emt 0:00:48]} 8. cxd5 {[%emt 0:01:25]} exd5 {[%emt 0:00:08]} 9. Nge2 {[%emt 0:01:09]} Nc6 {[%emt 0:00:08]} 10. a3 {[%emt 0:00:54]} Bd6 {[%emt 0:04:31]} 11. Nb5 {[%emt 0:05:13]} a6 {[%emt 0:05:06]} 12. Nxd6 {[%emt 0:01:11]} Qxd6 {[%emt 0:00:06]} 13. h3 {[%emt 0:02:15]} Be6 {[%emt 0:00:53]} 14. O-O {[%emt 0:00:38]} Rac8 {[%emt 0:00:03]} 15. Qd2 {[%emt 0:01:09]} Ne5 {[%emt 0:00:17]} 16. b3 {[%emt 0:01:18]} Bxh3 {[%emt 0:02:09]} 17. f4 {[%emt 0:03:35]} Nxd3 {[%emt 0:00:17]} 18. Qxd3 {[%emt 0:00:37]} Bd7 {[%emt 0:00:28]} 19. a4 {[%emt 0:02:26]} Ne4 {[%emt 0:01:16]} 20. Ba3 {[%emt 0:05:11]} Nc5 {[%emt 0:01:03]} 21. Rfd1 {[%emt 0:05:01]} Bg4 {[%emt 0:02:55]} 22. Qxd5 {[%emt 0:05:16]} Qxd5 {[%emt 0:00:32]} 23. Rxd5 {[%emt 0:00:07]} Nxb3 {[%emt 0:02:12]} 24. Re1 {[%emt 0:02:04]} Bxe2 {[%emt 0:01:19]} 25. Rxe2 {[%emt 0:00:17]} Rfe8 {[%emt 0:01:17]} 26. Kf2 {[%emt 0:01:50]} Rcd8 {[%emt 0:02:39]} 27. Rxd8 {[%emt 0:02:44]} Rxd8 {[%emt 0:00:03]} 28. Rb2 {[%emt 0:01:32]} Na5 {[%emt 0:03:44]} 29. Bc5 {[%emt 0:02:12]} Rd7 {[%emt 0:00:39]} 30. Bd4 {[%emt 0:01:00]} Nc6 {[%emt 0:00:23]} 31. Bc5 {[%emt 0:00:34]} Rd5 {[%emt 0:01:07]} 32. Ba3 {[%emt 0:21:32]} Rd7 {[%emt 0:02:07]} 33. Bc5 {[%emt 0:00:00]} h6 {[%emt 0:00:28]} 34. e4 {[%emt 0:00:00]} Na5 {[%emt 0:03:22]} 35. Be3 {[%emt 0:00:00]} Rd3 {[%emt 0:03:40]} 36. Bb6 {[%emt 0:00:00]} Nc4 {[%emt 0:00:06]} 37. Rb4 {[%emt 0:00:00]} Nxb6 {[%emt 0:03:32]} 38. Rxb6 {[%emt 0:00:00]} Rd4 {[%emt 0:00:02]} 39. Kf3 {[%emt 0:00:00]} Rxa4 {[%emt 0:00:05]} 40. Rxb7 {[%emt 0:00:00]} a5 {[%emt 0:00:06]} 41. Rb8+ {[%emt 0:00:00]} Kh7 {[%emt 0:00:04]} 42. f5 {[%emt 0:00:00]} f6 {[%emt 0:00:36]} 43. Rb7 {[%emt 0:00:00]} h5 {[%emt 0:03:53]} 44. g3 {[%emt 0:00:00]} Ra3+ {[%emt 0:02:43]} 45. Kg2 {[%emt 0:00:00]} Kh6 {[%emt 0:01:46]} 46. Rb6 {[%emt 0:00:00]} Re3 {[%emt 0:00:43]} 47. Ra6 {[%emt 0:00:25]} Rxe4 {[%emt 0:00:05]} 48. Rxa5 {[%emt 0:00:04]} Re5 {[%emt 0:00:07]} 49. Ra7 {[%emt 0:00:19]} Rxf5 {[%emt 0:00:05]} 50. Rb7 {[%emt 0:00:17]} g6 {[%emt 0:00:20]} 51. Rb4 {[%emt 0:00:27]} Ra5 {[%emt 0:00:55]} 52. Rc4 {[%emt 0:00:24]} Kg5 {[%emt 0:00:22]} 53. Rb4 {[%emt 0:00:08]} Ra3 {[%emt 0:00:30]} 54. Rc4 {[%emt 0:00:26]} f5 {[%emt 0:00:33]} 55. Rb4 {[%emt 0:01:11]} Re3 {[%emt 0:00:04]} 56. Ra4 {[%emt 0:00:22]} Re4 {[%emt 0:00:08]} 57. Ra6 {[%emt 0:00:07]} h4 {[%emt 0:00:42]} 58. gxh4+ {[%emt 0:01:01]} Rxh4 {[%emt 0:00:56]} 59. Kg3 {[%emt 0:00:14]} Rb4 {[%emt 0:00:08]} 60. Kf3 {[%emt 0:00:08]} Rb3+ {[%emt 0:00:06]} 61. Kg2 {[%emt 0:00:17]} f4 {[%emt 0:00:29]} 62. Kf2 {[%emt 0:00:10]} Kf5 {[%emt 0:00:04]} 63. Ra5+ {[%emt 0:00:19]} Kg4 {[%emt 0:00:06]} 64. Kg2 {[%emt 0:00:02]} Rb2+ {[%emt 0:00:12]} 65. Kf1 {[%emt 0:00:05]} g5 {[%emt 0:00:09]} 66. Ra3 {[%emt 0:00:11]} f3 {[%emt 0:00:14]} 67. Kg1 {[%emt 0:00:08]} Kg3 {[%emt 0:00:05]} 68. Ra1 {[%emt 0:00:05]} Rg2+ {[%emt 0:00:16]} 69. Kf1 {[%emt 0:00:08]} Rh2 {[%emt 0:00:05]} 70. Kg1 {[%emt 0:00:04]} f2+ {[%emt 0:00:02]} 0-1

[Event "2nd Namma Bengaluru Open-B 2025"]
[Site "Bengaluru"]
[Date "2025.04.11"]
[Round "5.10"]
[White "Anurag, Jaiswal"]
[Black "Justin, Joseph"]
[Result "0-1"]
[Annotator "NA"]
[ECO "E08"]
[WhiteElo "1923"]
[BlackElo "1923"]
[PlyCount "97"]
[EventDate "2025.04.10"]
[EventType "swiss"]
[EventCountry "IND"]
[SourceTitle "playchess.com"]
[Source "ChessBase"]
[SourceQuality "1"]
[TimeControl "3600+30"]

1. d4 {[%emt 1:01:00]} d5 {[%emt 1:01:00]} 2. c4 {[%emt 0:00:30]} e6 {[%emt 0:00:30]} 3. Nf3 {[%emt 0:00:30]} Nf6 {[%emt 0:00:30]} 4. g3 {[%emt 0:00:30]} Bb4+ {[%emt 0:00:30]} 5. Bd2 {[%emt 0:00:30]} Be7 {[%emt 0:00:30]} 6. Bg2 {[%emt 0:00:30]} O-O {[%emt 0:00:30]} 7. O-O {[%emt 0:00:30]} c6 {[%emt 0:00:30]} 8. Qc2 {[%emt 0:00:30]} Nbd7 {[%emt 0:00:30]} 9. Bf4 {[%emt 0:00:30]} Ne4 {[%emt 0:00:30]} 10. Nc3 {[%emt 0:00:30]} f5 {[%emt 0:00:30]} 11. Rab1 {[%emt 0:00:30]} g5 {[%emt 0:00:30]} 12. Bc1 {[%emt 0:00:30]} g4 {[%emt 0:00:30]} 13. Ne1 {[%emt 0:00:30]} Bf6 {[%emt 0:00:30]} 14. e3 {[%emt 0:00:30]} Nxc3 {[%emt 0:00:30]} 15. bxc3 {[%emt 0:00:30]} Nb6 {[%emt 0:00:30]} 16. c5 {[%emt 0:00:30]} Nc4 {[%emt 0:00:30]} 17. Nd3 {[%emt 0:00:30]} Qe8 {[%emt 0:00:30]} 18. Rb3 {[%emt 0:00:30]} h5 {[%emt 0:00:30]} 19. Nb2 {[%emt 0:00:30]} Nxb2 {[%emt 0:00:30]} 20. Bxb2 {[%emt 0:00:30]} h4 {[%emt 0:00:30]} 21. Rc1 {[%emt 0:00:30]} Qh5 {[%emt 0:00:30]} 22. c4 {[%emt 0:00:30]} Rf7 {[%emt 0:00:30]} 23. Rb1 {[%emt 0:00:30]} Rh7 {[%emt 0:00:30]} 24. a4 {[%emt 0:00:30]} Bd8 {[%emt 0:00:30]} 25. Bc3 {[%emt 0:00:30]} hxg3 {[%emt 0:00:30]} 26. hxg3 b6 {[%emt 0:00:30]} 27. cxb6 {[%emt 0:01:00]} Ba6 {[%emt 0:00:30]} 28. Rb5 {[%emt 0:00:30]} axb6 {[%emt 0:00:30]} 29. cxd5 {[%emt 0:00:30]} exd5 {[%emt 0:00:30]} 30. Qb3 {[%emt 0:00:30]} Kh8 {[%emt 0:00:30]} 31. Ra1 {[%emt 0:00:30]} Raa7 {[%emt 0:00:30]} 32. Qa3 {[%emt 0:00:30]} Be7 {[%emt 0:00:30]} 33. Qb3 {[%emt 0:00:30]} Bd6 {[%emt 0:00:30]} 34. Bb2 {[%emt 0:00:30]} Rh6 {[%emt 0:00:30]} 35. Rc1 {[%emt 0:00:30]} Rah7 {[%emt 0:00:30]} 36. Kf1 {[%emt 0:00:30]} Qe8 {[%emt 0:00:30]} 37. Rxc6 {[%emt 0:00:30]} Qxc6 {[%emt 0:00:30]} 38. Bxd5 {[%emt 0:00:30]} Bxb5+ {[%emt 0:00:30]} 39. axb5 {[%emt 0:00:30]} Qe8 {[%emt 0:00:30]} 40. Qd3 {[%emt 0:00:30]} Qf8 {[%emt 0:00:30]} 41. Bc6 {[%emt 0:00:30]} Ra7 {[%emt 0:00:30]} 42. Qc4 {[%emt 0:00:30]} Rh2 {[%emt 0:00:30]} 43. Qe6 {[%emt 0:00:30]} Bxg3 {[%emt 0:00:30]} 44. Bg2 {[%emt 0:00:30]} Bd6 {[%emt 0:00:30]} 45. d5+ {[%emt 0:00:30]} Kh7 {[%emt 0:00:30]} 46. Bf6 {[%emt 0:00:30]} Rh5 {[%emt 0:00:30]} 47. e4 {[%emt 0:00:30]} Rf7 {[%emt 0:00:30]} 48. Bd4 {[%emt 0:00:30]} Rh6 {[%emt 0:00:30]} 49. Bf6 {[%emt 0:00:30]} 0-1